Cogmind - Beta 16 @@@ ROGUE MODE // 2025.12.28 @ 22:09:02 Player: Blanco! Result: Destroyed by Y-45 Defender with Beam Rifle Performance ------------- Evolutions (2) 1000 Regions Visited (4) 800 Robots Destroyed (18) 90 Value Destroyed (554) 554 Prototype IDs (1) 20 Alien Tech Used (0) 0 Bonus (0) 0 TOTAL SCORE: 2464 Bonus ------- None Cogmind --------- Core Integrity 0/550 Matter 206/300 Energy 72/100 System Corruption 0% Temperature Cool (9) Movement Core (500) Ox9 Location -8/Storage Parts ------- > --- POWER (1) -------- (None) > --- PROPULSION (4) --- (None) > --- UTILITY (3) ------ Medium Storage Unit Reactive Plating > --- WEAPON (3) ------- Assault Cannon Assault Cannon > --- INVENTORY (10) --- Light Treads Heat Sink Light Armor Plating Mini Grenade Launcher Peak State ------------ > --- POWER ------------ Heavy Ion Engine > --- PROPULSION ------- Wheel Wheel Xenon Bombardment Thruster Xenon Bombardment Thruster > --- UTILITY ---------- Medium Storage Unit ECM Suite Hardened Light Armor Plating > --- WEAPON ----------- Improved Grenade Launcher Improved Grenade Launcher Improved Grenade Launcher > --- INVENTORY -------- Aluminum Leg Aluminum Leg Xenon Bombardment Thruster Xenon Bombardment Thruster Assault Cannon Assault Cannon Great Axe [Rating: 28] Favorites ----------- Power Light Ion Engine Engine Light Ion Engine Propulsion Wheel Leg Aluminum Leg Wheel Wheel Flight Unit Xenon Bombardment Thruster Utility ECM Suite Device ECM Suite Storage Medium Storage Unit Protection Hardened Light Armor Plating Weapon Improved Grenade Launcher Ballistic Gun Assault Rifle Ballistic Cannon Assault Cannon Launcher Improved Grenade Launcher Slashing Weapon Great Axe Build | -11 -10 -9 -8 -8 ------- Run | Yrd Mat Mat Mat Sto Slots Evolved 4 | . . 2 2 . Power . | . . . . . Propulsion 2 | . . 2 . . Utility 1 | . . . 1 . Weapon 1 | . . . 1 . Parts Attached 28 | 7 1 6 5 9 Power 4 | 1 . 2 . 1 Engine 4 | 1 . 2 . 1 Core . | . . . . . Reactor . | . . . . . Propulsion 8 | 3 . . 2 3 Treads . | . . . . . Leg 2 | 1 . . . 1 Wheel 2 | 2 . . . . Hover . | . . . . . Flight 4 | . . . 2 2 Utility 6 | 1 1 1 1 2 Device 2 | . 1 . . 1 Storage 2 | 1 . 1 . . Processor . | . . . . . Hackware . | . . . . . Protection 2 | . . . 1 1 Artifact . | . . . . . Weapon 10 | 2 . 3 2 3 Energy Gun . | . . . . . Energy Cannon . | . . . . . Ballistic Gun 2 | 2 . . . . Ballistic Cannon 2 | . . . . 2 Launcher 4 | . . 3 1 . Special Weapon . | . . . . . Impact Weapon . | . . . . . Slashing Weapon 2 | . . . 1 1 Piercing Weapon . | . . . . . Special Melee Weapon . | . . . . . Unidentified Prototypes 1 | . . 1 . . Parts Lost 18 | . . 1 9 8 Power 3 | . . 1 1 1 Propulsion 8 | . . . 4 4 Utility 2 | . . . 1 1 Weapon 5 | . . . 3 2 Highest Loss Streak 9 | . . 1 9 6 To Critical Strikes 1 | . . . . 1 Average Backups 6 | 3 6 7 7 6 Power . | . 1 1 . . Propulsion 2 | 2 4 2 3 1 Utility . | . . . . 1 Weapon 2 | . . 3 3 3 Tool/Special . | . . . . . Unused Backups 8 | . . 5 . 3 Power 2 | . . 2 . . Propulsion 3 | . . 2 . 1 Utility 2 | . . 1 . 1 Weapon 1 | . . . . 1 Tool/Special . | . . . . . Average Slot Usage (%) 74 | . 91 76 84 58 Engine 8 | . 14 10 8 4 Leg 3 | . . . . 9 Wheel 13 | . 28 22 15 . Flight 4 | . . . 9 6 Device 10 | . 5 11 9 13 Storage 10 | . 14 11 9 9 Protection 2 | . . . 8 . Ballistic Gun 5 | . 28 2 . . Launcher 9 | . . 19 23 . Slashing Weapon 6 | . . . . 15 Peak Build Rating 28 | 6 7 14 28 19 Average Rating 14 | 3 6 12 22 15 On Entrance 7 | . 6 7 14 8 Avg Prop Armor Cover (%) 7 | . . . 5 18 Naked Turns . | . . . . . Heaviest Build 43 | 12 14 32 43 28 Greatest Support 20 | 20 20 20 20 20 Greatest Overweight (x) 12 | . . 1 12 8 Average Overweight (x) 1 | . . . 3 1 Largest Inventory Capacity 10 | 8 8 10 10 10 Average Capacity 9 | 6 8 9 10 10 Most Carried 10 | 5 8 10 9 8 Average Carried 6 | 3 6 7 7 6 Final Capacity 10 | 8 8 10 10 10 Final Carried 8 | 5 7 7 8 4 Class Distribution -------------------- 83% | Mutant 16% | Bomber Dominant Class ---------------- Mutant | -10/Materials Mutant | -9/Materials Bomber | -8/Materials Mutant | -8/Storage Resources | -11 -10 -9 -8 -8 ----------- Run | Yrd Mat Mat Mat Sto Matter Collected 624 | 205 135 32 21 231 Remotely . | . . . . . Salvage Created 599 | . 135 107 126 231 Parts 42 | . 12 7 10 13 Haulers Intercepted 1 | . . 1 . . Recyclers Shooed . | . . . . . Parts Field Recycled . | . . . . . Retrieved Matter . | . . . . . Parts Self-Destructed . | . . . . . Prevented . | . . . . . Parts Restored . | . . . . . Kills | -11 -10 -9 -8 -8 ------- Run | Yrd Mat Mat Mat Sto Combat Hostiles Destroyed 15 | . 5 5 2 3 Melee 3 | . . . . 3 Guns 5 | . 5 . . . AOE 7 | . . 5 2 . Classes Destroyed 5 | . 2 2 1 . Worker 2 | . . . 2 . Hauler 1 | . . 1 . . Swarmer 3 | . 3 . . . Grunt 6 | . 2 2 1 1 Sentry 6 | . . 3 1 2 Best Kill Streak 3 | . 3 3 2 2 Combat Bots Only 3 | . 3 3 1 2 Max Kills in Single Turn 2 | . 2 2 2 1 Gunslinging . | . . . . . Exploded 1 | . . 1 1 . Melee 1 | . . . . 1 Uniques/NPCs Destroyed . | . . . . . Combat | -11 -10 -9 -8 -8 -------- Run | Yrd Mat Mat Mat Sto Hostile Shots Fired 224 | . 27 24 86 87 Missed 56 | . 7 6 23 20 Hits 168 | . 20 18 63 67 Projectile 168 | . 20 18 63 67 Critical Strikes 8 | . . 3 1 4 Damage Taken 2153 | . 176 276 771 930 Core 625 | . 42 26 236 321 Absorbed by Shields . | . . . . . Ignored by Resistances 57 | . . . . 57 Core Remaining (%) 92 | 100 83 93 . . Volleys Fired 24 | . 13 8 2 1 Largest 3 | . 2 2 3 1 Hottest 108 | . 40 72 108 37 Shots Fired 48 | . 26 16 5 1 Gun 26 | . 26 . . . Cannon 1 | . . . . 1 Launcher 21 | . . 16 5 . Special . | . . . . . Kinetic 27 | . 26 . . 1 Thermal . | . . . . . Explosive 21 | . . 16 5 . Electromagnetic . | . . . . . Robot Hit Streak 10 | . 7 10 10 1 Robot Miss Streak 3 | . 3 1 1 . Penetration Max . | . . . . . Secondary Targets . | . . . . . Shots Hit Robots 39 | . 14 12 2 11 Core Hits 29 | . 7 16 3 3 Critical Kills . | . . . . . Critical Parts Destroyed . | . . . . . Critical Strikes 2 | . . . . 2 Sever 2 | . . . . 2 Melee Attacks 13 | . . . 1 12 Impact . | . . . . . Slashing 13 | . . . 1 12 Piercing . | . . . . . Sneak Attacks 2 | . . . 1 1 Combat Hostiles . | . . . . . Follow-up Attacks 1 | . . . . 1 Damage Inflicted 1741 | . 202 737 214 588 Guns 201 | . 201 . . . Cannons 22 | . . . . 22 Explosions 823 | . . 707 116 . Melee 655 | . . . 96 559 Ramming 40 | . 1 30 2 7 Kinetic 223 | . 201 . . 22 Thermal 140 | . . 140 . . Explosive 683 | . . 567 116 . Electromagnetic . | . . . . . Impact . | . . . . . Slashing 655 | . . . 96 559 Piercing . | . . . . . Highest Corruption 3 | . . 3 . . Average Corruption 2 | . . 2 . . Corruption Purged . | . . . . . Corruption Blocked . | . . . . . Effects 3 | . . 3 . . Heat Flow Errors 1 | . . 1 . . Energy Discharges 1 | . . 1 . . Misfires 1 | . . 1 . . Overload Shots . | . . . . . Overflow Damage 317 | . . . 60 257 Projectiles . | . . . . . Explosions 4 | . . . 4 . Melee 313 | . . . 56 257 Knockbacks 1 | . . 1 . . Impact 1 | . . 1 . . Kinetic . | . . . . . Secondary . | . . . . . Self-Inflicted Damage 72 | . . 26 46 . Shots 2 | . . 1 1 . Rammed 5 | . 1 2 1 1 Targets Rammed 10 | . 1 2 1 6 Kicked 5 | . . . . 5 Crushed . | . . . . . Highest Temperature 165 | . 12 165 48 1 Average Temperature 27 | . 7 33 15 1 Received Heat Transfer 765 | . 30 150 252 333 Siege Activations . | . . . . . Martial Activations . | . . . . . Shielding Activations . | . . . . . Robots Disrupted . | . . . . . Combat Hostiles . | . . . . . Robots Corrupted . | . . . . . Combat Hostiles . | . . . . . Parts Fried . | . . . . . Impact Corruptions . | . . . . . Robots Melted . | . . . . . Combat Hostiles . | . . . . . Parts Melted . | . . . . . Heat Transferred 100 | . . 100 . . Parts Sabotaged . | . . . . . Parts Stolen . | . . . . . Parts Stripped . | . . . . . Power Chain Reactions . | . . . . . Alert | -11 -10 -9 -8 -8 ------- Run | Yrd Mat Mat Mat Sto Maximum Alert Level . | . . . . . Low Security (%) 100 | 100 100 100 100 100 Level 1 . | . . . . . Level 2 . | . . . . . Level 3 . | . . . . . Level 4 . | . . . . . Level 5 . | . . . . . High Security . | . . . . . Max Security . | . . . . . Peak Influence 183 | . 81 183 106 40 Initial 59 | . . 25 59 . Average 33 | . 33 77 48 3 Influence Increases 596 | . 121 253 112 110 Destroy 0b10 Robot/C 300 | . 100 100 40 60 Destroy 0b10 Robot/NC 30 | . . 5 10 15 Destroy Leader 92 | . 20 32 20 20 Disable Machine 30 | . . 30 . . Destroy Structure 129 | . 1 86 42 . Lose Combat Pursuer 15 | . . . . 15 Influence Decreases 596 | . 60 171 255 110 Entered New Map 120 | . . 36 84 . Time Decay 358 | . 60 125 120 53 Lost Part 118 | . . 10 51 57 Squads Dispatched 3 | . 2 . 1 . Investigation . | . . . . . Extermination . | . . . . . Reinforcement 3 | . 2 . 1 . Assault . | . . . . . Garrison . | . . . . . Intercept . | . . . . . Searches Triggered . | . . . . . Construction Impeded 1 | . . . 1 . Haulers Reinforced . | . . . . . Active Scanning Responses . | . . . . . Cargo Convoy Interrupts . | . . . . . Stealth | -11 -10 -9 -8 -8 --------- Run | Yrd Mat Mat Mat Sto Distress Signals . | . . . . . Communications Jammed . | . . . . . Distress Signals . | . . . . . Times Spotted 28 | . 9 6 5 8 Peak Tracking Total 7 | . 3 3 4 7 Tactical Retreats 4 | . 1 . 1 2 ECM-based Alert Blocks 4 | . 1 . 1 2 Traps | -11 -10 -9 -8 -8 ------- Run | Yrd Mat Mat Mat Sto Traps Triggered 1 | . . 1 . . Indirectly . | . . . . . Trap Hack Attempts . | . . . . . Triggered . | . . . . . Disarmed . | . . . . . Reprogrammed . | . . . . . Reused . | . . . . . Traps Extracted . | . . . . . Installed . | . . . . . Triggered . | . . . . . Machines | -11 -10 -9 -8 -8 ---------- Run | Yrd Mat Mat Mat Sto Machines Disabled 2 | . . 2 . . Max in Single Turn 2 | . . 2 . . Machines Repaired . | . . . . . Machines Dismantled . | . . . . . Machines Sabotaged . | . . . . . Overloaded Fab Kills . | . . . . . Hacking | -11 -10 -9 -8 -8 --------- Run | Yrd Mat Mat Mat Sto Machines Accessed 1 | . 1 . . . Terminals 1 | . 1 . . . Fabricators . | . . . . . Repair Stations . | . . . . . Recycling Units . | . . . . . Scanalyzers . | . . . . . Garrison Access . | . . . . . Total Hacks 1 | . 1 . . . Successful . | . . . . . Failed 1 | . 1 . . . Catastrophic . | . . . . . Database Lockouts . | . . . . . Manual . | . . . . . Terminals 1 | . 1 . . . Fabricators . | . . . . . Repair Stations . | . . . . . Recycling Units . | . . . . . Scanalyzers . | . . . . . Garrison Access . | . . . . . Terminal Hacks . | . . . . . Fabricator Hacks . | . . . . . Repair Station Hacks . | . . . . . Recycling Unit Hacks . | . . . . . Scanalyzer . | . . . . . Garrison Access Hacks . | . . . . . Unauthorized Hacks . | . . . . . Terminals . | . . . . . Fabricators . | . . . . . Repair Stations . | . . . . . Recycling Units . | . . . . . Scanalyzers . | . . . . . Garrison Access . | . . . . . Data Cores Recovered . | . . . . . Used . | . . . . . Hacking Detections . | . . . . . Full Trace Events . | . . . . . Feedback Events . | . . . . . Feedback Blocked . | . . . . . Robot Schematics Acquired . | . . . . . Robots Built . | . . . . . Authchips . | . . . . . Time . | . . . . . Total Robot Build Rating . | . . . . . Part Schematics Acquired . | . . . . . Parts Built . | . . . . . Authchips . | . . . . . Time . | . . . . . Total Part Build Rating . | . . . . . Part Studies Acquired . | . . . . . Parts Repaired . | . . . . . Time . | . . . . . Parts Recycled . | . . . . . Recycled Matter . | . . . . . Retrieved Matter . | . . . . . Retrieved Components . | . . . . . Parts Scanalyzed . | . . . . . Part Schematics Acquired . | . . . . . Parts Damaged . | . . . . . Bothacking | -11 -10 -9 -8 -8 ------------ Run | Yrd Mat Mat Mat Sto Used RIF Installer . | . . . . . Robots Hacked . | . . . . . Non-combat . | . . . . . Combat . | . . . . . Robot Hacks Applied . | . . . . . Relay Couplers Released . | . . . . . Fabnet Peak Effective % . | . . . . . Robots Rewired . | . . . . . Allies Hacked . | . . . . . Hacks Repelled . | . . . . . Allies | -11 -10 -9 -8 -8 -------- Run | Yrd Mat Mat Mat Sto Total Allies . | . . . . . Largest Group . | . . . . . Highest-Rated Group . | . . . . . Highest-Rated Ally . | . . . . . Total Orders . | . . . . . Ally Attacks . | . . . . . Total Damage . | . . . . . Kills . | . . . . . Allies Corrupted . | . . . . . Allies Melted . | . . . . . Intel | -11 -10 -9 -8 -8 ------- Run | Yrd Mat Mat Mat Sto Active Infowar (turns) 906 | . 90 266 269 281 ECM 906 | . 90 266 269 281 Robot Analysis Total . | . . . . . Derelict Logs Recovered . | . . . . . Drone Launches . | . . . . . Drone Recoveries . | . . . . . Exploration | -11 -10 -9 -8 -8 ------------- Run | Yrd Mat Mat Mat Sto Turns Passed 1269 | 69 212 266 269 453 Spaces Moved 812 | 69 200 234 104 205 Core 50 | 20 . . 11 19 Treads . | . . . . . Legs 112 | 4 . . . 108 Wheels 525 | 45 200 234 46 . Hover . | . . . . . Flight 125 | . . . 47 78 Fastest Speed 50 | 50 80 80 110 117 Average Speed 128 | 73 80 93 237 180 Slowest Speed 650 | 120 80 95 650 450 Overloaded Moves . | . . . . . Propulsion Burnouts . | . . . . . Robots Hopped . | . . . . . Potential Cave-ins . | . . . . . Cave-ins Triggered . | . . . . . Exploration Rate (%) 18 | 4 34 23 9 20 Regions Visited 4 Branch Regions 1 Pre-discovered Areas . | . . . . . Known Exits Taken . | . . . . . Unknown Exits Taken 4 | 1 1 1 1 . Scrap Searched . | . . . . . Spaces Dug . | . . . . . Terrain Destroyed 156 | . . 97 59 . Melee . | . . . . . Projectile . | . . . . . AOE 156 | . . 97 59 . Terrain Rammed . | . . . . . Walls Destroyed . | . . . . . Machines Disabled . | . . . . . Actions | -11 -10 -9 -8 -8 --------- Run | Yrd Mat Mat Mat Sto Total 955 | 85 225 267 120 258 Wait 28 | . 8 . . 20 Move 808 | 68 199 233 103 205 Hop . | . . . . . Pick Up 34 | 10 3 9 7 5 Fast Attach 1 | 1 . . . . Attach 21 | 5 1 1 5 9 Detach . | . . . . . Swap 7 | 1 . 5 . 1 Drop 10 | . . 9 1 . Fire 24 | . 13 8 2 1 Melee 12 | . . . 1 11 Ram 5 | . 1 2 1 1 Kick 5 | . . . . 5 Crush . | . . . . . Escape Stasis . | . . . . . Rewire . | . . . . . Trap . | . . . . . Miscellaneous . | . . . . . Route ------- -11/Scrapyard -10/Materials -9/Materials -8/Materials -8/Storage History --------- Turn | Location | Event 11 | -11/Scrapyard | Discovered new exit (range 16) 70 | -11/Scrapyard | Entered Materials 267 | -10/Materials | Discovered new exit (range 15) 282 | -10/Materials | Entered another Materials area 282 | -9/Materials | Evolved 2 slots: Propulsion x2 334 | -9/Materials | Build established: Mutant 541 | -9/Materials | Discovered new exit (range 5) 548 | -9/Materials | Entered another Materials area 548 | -8/Materials | Evolved 2 slots: Utility x1, Weapon x1 587 | -8/Materials | Discovered new exit (range 8) 817 | -8/Materials | Entered Storage 840 | -8/Storage | Lost 9 parts (1p4n1u3w) 965 | -8/Storage | Core integrity fell below 50% 1247 | -8/Storage | Core integrity fell below 20% 1270 | -8/Storage | Destroyed by Y-45 Defender with Beam Rifle Last Messages --------------- 01253_ ECM Suite destroyed. 01254_ K-01 Serf collects debris. 01255_ Kicked H-55 Commando. 01256_ Slug penetrates Transfer Shaft. 01257_ K-01 Serf collects debris. 01257_ Kicked Y-45 Defender out of the way. 01260_ K-01 Serf collects debris. 01260_ Kicked Y-45 Defender. 01262_ Aluminum Leg destroyed. 01262_ R-06 Scavenger collects Imp. Ion Engine. 01263_ Slammed into Y-45 Defender. 01263_ K-01 Serf collects debris. 01264_ R-06 Scavenger collects Particle Gun. 01264_ Great Axe destroyed. 01265_ Slug penetrates Wall. 01266_ R-06 Scavenger collects Imp. Heat Sink. 01266_ R-06 Scavenger collects Lgt. Nuclear Core. 01266_ K-01 Serf collects debris. 01267_ R-06 Scavenger collects Lgt. Treads. 01269_ R-06 Scavenger collects Hvy. Assault Rifle. Map ----- +----------------------------------------------------+ | ????????????????????????????????????????????????? | | ????????????????????????????????????????????????? | | ????????????????????????????????????????????????? | | ????????????????????????????????????????????????? | | ????????????????????????????????????????????????? | | ????????????????????????????????????????????????? | | ????????????????????????????????????????????????? | | ????????????????????????????????????????????????? | | ????????????????????????????????????????????????? | | ????????????????????????????????????????????????? | | ????????????????????????????????????????????????? | | ????????????????????????????????????????????????? | | ????????????????????????????????????????????????? | | ????????????????????????????????????????????????? | | ????????????????????????????????????????????????? | | ????????????????????????????????????????????????? | | ????????????????????????????????????????????????? | | ?????????????????????????????#####??????????????? | | ?????????????????????????????# #??????????????? | | ???????????????????########### #??????????????? | | ???????????????????# # #??????????????? | | ???????????????????# """ r"" # #??????????????? | | ???????????????????# """=! # #??????????????? | | ???????????????????# "" "" + #??????????????? | | ???????????????????# hrr! # #??????????????? | | ???????????????????# @Yk # #??????????????? | | ???????????????????# # #??????????????? | | ????????????????? + % # #??????????????? | | ?????????????? ###### ###### #??????????????? | | ???????????? ???????###????# #??????????????? | | ??????????T ?????????????????# #??????????????? | | ?????????????????????????????# #??????????????? | | ?????????????????????????????# #??????????????? | | ?????????????????????????????# #??????????????? | | ?????????????????????????????# ################ | | ?????????????????????????????# | | ?????????????????????????????# | | ?????????????????????????????# | | ?????????????????????????????#################### | | ????????????????????????????????????????????????? | | ????????????????????????????????????????????????? | | ????????????????????????????????????????????????? | | ????????????????????????????????????????????????? | | ????????????????????????????????????????????????? | | ????????????????????????????????????????????????? | | ????????????????????????????????????????????????? | | ????????????????????????????????????????????????? | | ???????????????????????????????????????????????## | | ???????????????????????????????????????????? | | ???????????????????????????????????????????? | +----------------------------------------------------+ Best States ------------- Heat Dissipation 41 Energy Generation 14 Energy Capacity 280 Matter Stores 286 Matter Capacity 300 Sight Range 16 Terrain Scan Density 10 ECM Strength 1 Armor Coverage 150 Resistance: KI 20 Evasion (%) 50 Item Schematics ----------------- None Robot Schematics ------------------ None Fabricated ------------ Nothing Repaired ---------- Nothing Studied --------- None Alien Tech Used ----------------- None Achievements -------------- Organ Harvest Challenges ------------ None Game ------ Seed AblativeLinkedFemtoactuators Manual? 0 Play Time 00:16:53 Cumulative 16.6 hours Start 2025.12.28 @ 21:52:10 End 2025.12.28 @ 22:09:02 Sessions 1 Manual Loads 0 Difficulty Rogue Special Mode None Game No. 27 Rogue 27 Adventurer 0 Explorer 0 Win Type - Total 0 Types 0/0/0/0/0/0/0/0/0/0 Lore% 8 Gallery% 16 Achievement% 9 Wizard Run 0 Options --------- Layout 0 ASCII 0 Keyboard 0 Movement Arrows Keybinds 0 Fullscreen 2 Font 18/SmallcapsGlow Map View 38x25 Zoom Use 99% Tactical HUD 1 Map Filters NONE Filters NONE Steam 1 RUN: cbe252ac-a532-4ff1-9dfd-8288c49d1263